Cogmind - Beta 10 @@@ ROGUE MODE // 2020.09.13 @ 20:24:25 Player: Decinym Result: Destroyed by G-47 Trooper with Particle Gun Performance ------------- Evolutions (3) 1500 Regions Visited (8) 1600 Robots Destroyed (220) 1100 Value Destroyed (6107) 6107 Prototype IDs (41) 820 Alien Tech Used (0) 0 Bonus (1992) 1992 TOTAL SCORE: 13119 Bonus ------- Triggered High Security 500 High Alert Combat Kills 2097 Follower Combat Kills 60 Aligned with FarCom 300 Friendly Fire -965 Cogmind --------- Core Integrity 0/700 Matter 200/300 Energy 100/100 System Corruption 8% Temperature Cool (9) Movement Flying (735) Ox10 Location -7/Factory Parts ------- > --- POWER (1) -------- (None) > --- PROPULSION (3) --- Improved VTOL Module > --- UTILITY (7) ------ Improved Heat Sink Large Storage Unit Large Storage Unit High-capacity Storage Unit Hacking Suite > --- WEAPON (2) ------- (None) > --- INVENTORY (24) --- High-capacity Storage Unit Gravity Neutralizing Apparatus Long-range Sensor Array Experimental Targeting Computer Armor Integrity Analyzer 8R-AWN's Armor/EX Hacking Suite Advanced Component Analysis Suite AS-neutralizer No. 17b EM Pulse Cannon Improved EM Pulse Cannon Latent Energy Streamer Firepult 8R-AWN's Boregun Powered Hammer Deploy-a-Sentry Peak State ------------ > --- POWER ------------ Enhanced Nuclear Core > --- PROPULSION ------- Medium Treads Medium Treads Medium Treads > --- UTILITY ---------- Improved Heat Sink Improved Heat Sink Large Storage Unit Large Storage Unit High-capacity Storage Unit Improved Power Shielding Hacking Suite > --- WEAPON ----------- Firepult > --- INVENTORY -------- Reinforced Fission Core Medium Treads Advanced Myomer Leg Improved Flight Unit Improved VTOL Module High-capacity Storage Unit Gravity Neutralizing Apparatus Long-range Sensor Array Experimental Targeting Computer Armor Integrity Analyzer 8R-AWN's Armor/EX Hacking Suite Advanced Component Analysis Suite AS-neutralizer No. 17b EM Pulse Cannon Improved EM Pulse Cannon Latent Energy Streamer Cooled Particle Cannon 8R-AWN's Boregun Powered Hammer Deploy-a-Sentry [Rating: 64] Favorites ----------- Power Reinforced Fission Core Engine Cooled Ion Engine Power Core Reinforced Fission Core Propulsion Light Treads Treads Light Treads Leg Advanced Myomer Leg Flight Unit Improved VTOL Module Utility Large Storage Unit Device Experimental Heat Sink Storage Large Storage Unit Processor Transport Network Coupler Hackware Hacking Suite Protection Reactive Plating Weapon Flak Cannon Energy Gun Heavy Particle Gun Energy Cannon Advanced Beam Cannon Ballistic Gun Assault Rifle Ballistic Cannon Flak Cannon Launcher Shock Bomb Launcher Impact Weapon Powered Hammer Slashing Weapon Axe Build | -11 -10 -10 -9 -9 -9 -8 -8 -7 ------- Run | Scr Mat Min Mat Min Exi Min Mat Fac Slots Evolved 6 | . . . 2 . . . 2 2 Power . | . . . . . . . . . Propulsion 1 | . . . . . . . 1 . Utility 5 | . . . 2 . . . 1 2 Weapon . | . . . . . . . . . Parts Attached 165 | . 17 2 16 3 31 1 41 54 Power 14 | . 2 . 3 1 2 . 2 4 Engine 8 | . 2 . 3 1 1 . 1 . Core 6 | . . . . . 1 . 1 4 Reactor . | . . . . . . . . . Propulsion 41 | . 6 2 3 . 9 . 10 11 Treads 19 | . . . 3 . 3 . 4 9 Leg 20 | . 6 2 . . 6 . 5 1 Wheel . | . . . . . . . . . Hover . | . . . . . . . . . Flight 2 | . . . . . . . 1 1 Utility 42 | . 3 . 6 . 10 . 10 13 Device 14 | . . . . . 5 . 5 4 Storage 8 | . 1 . 3 . 1 . 2 1 Processor 1 | . . . . . . . 1 . Hackware 2 | . . . . . . . 1 1 Protection 17 | . 2 . 3 . 4 . 1 7 Artifact . | . . . . . . . . . Weapon 68 | . 6 . 4 2 10 1 19 26 Energy Gun 10 | . . . 2 . . . 5 3 Energy Cannon 21 | . . . . . 1 . 5 15 Ballistic Gun 10 | . 4 . . . 1 . 3 2 Ballistic Cannon 8 | . 2 . 2 . 4 . . . Launcher 11 | . . . . . 1 1 5 4 Special Weapon . | . . . . . . . . . Impact Weapon 3 | . . . . . . . 1 2 Slashing Weapon 5 | . . . . 2 3 . . . Piercing Weapon . | . . . . . . . . . Special Melee Weapon . | . . . . . . . . . Unidentified Prototypes 14 | . . . 2 . 5 . 5 2 Parts Lost 39 | . 4 . 2 . 5 . 6 22 Power 2 | . 1 . . . . . . 1 Propulsion 14 | . 1 . . . 2 . 3 8 Utility 10 | . . . . . 3 . 1 6 Weapon 13 | . 2 . 2 . . . 2 7 Highest Loss Streak 12 | . 4 . 2 . 4 . 2 12 Average Slot Usage (%) 96 | . 96 100 97 100 95 100 97 95 Engine 6 | . 13 14 11 11 8 . . . Core 3 | . . . . . 2 11 8 7 Treads 11 | . . . 20 22 13 . 4 22 Leg 12 | . 27 28 1 . 8 22 21 . Device 2 | . . . . . . . 6 6 Storage 24 | . 14 14 30 33 28 33 27 23 Processor 1 | . . . . . . . 8 1 Hackware 1 | . . . . . . . . 6 Protection 9 | . 13 14 11 11 11 11 1 10 Energy Gun 1 | . . . 3 . . . 2 3 Energy Cannon 3 | . . . . . 2 . 10 9 Ballistic Gun 2 | . 19 . . . 1 . 1 . Ballistic Cannon 8 | . 4 28 17 17 8 . . . Slashing Weapon 3 | . . . . 4 9 18 . . Naked Turns . | . . . . . . . . . Heaviest Build 111 | 11 26 26 94 94 107 104 104 111 Greatest Support 84 | 20 26 23 40 40 60 60 80 84 Greatest Overweight (x) 12 | . 1 1 3 2 4 1 4 12 Average Overweight (x) 1 | . . 1 1 2 1 1 1 . Largest Inventory Capacity 32 | . 10 10 24 24 24 24 24 32 Average Capacity 20 | . 8 10 22 24 21 24 24 24 Most Carried 24 | . 10 10 24 24 24 24 24 24 Average Carried 19 | . 7 9 21 23 20 24 23 23 Final Capacity 24 | 6 10 10 24 24 24 24 24 24 Final Carried 24 | 6 10 10 24 24 24 24 24 18 Class Distribution -------------------- 44% | Hauler-Mutant 33% | Mutant 22% | Scavenger-Mutant Dominant Class ---------------- Mutant | -10/Materials Mutant | -10/Mines Hauler-Mutant | -9/Materials Hauler-Mutant | -9/Mines Hauler-Mutant | -9/Exiles Hauler-Mutant | -8/Mines Scavenger-Mutant | -8/Materials Scavenger-Mutant | -7/Factory Resources | -11 -10 -10 -9 -9 -9 -8 -8 -7 ----------- Run | Scr Mat Min Mat Min Exi Min Mat Fac Matter Collected 3952 | 200 522 151 499 87 859 45 951 638 Remotely . | . . . . . . . . . Salvage Created 7747 | . 698 161 1141 65 473 283 2418 2508 Parts 406 | . 47 16 86 5 34 8 107 103 Haulers Intercepted 12 | . 2 . 3 . . . 5 2 Recyclers Shooed 7 | . 1 . 1 . . . 1 4 Parts Field Recycled . | . . . . . . . . . Retrieved Matter . | . . . . . . . . . Parts Self-Destructed . | . . . . . . . . . Prevented . | . . . . . . . . . Kills | -11 -10 -10 -9 -9 -9 -8 -8 -7 ------- Run | Scr Mat Min Mat Min Exi Min Mat Fac Combat Hostiles Destroyed 136 | . 12 6 22 . 4 3 49 40 Melee 1 | . . . . . . . . 1 Guns 41 | . 12 . 12 . 1 . 7 9 Cannons 40 | . . 6 8 . . . 12 14 AOE 50 | . . . 2 . 3 1 30 14 Classes Destroyed 20 | . 7 2 2 . 3 . 5 1 Worker 13 | . . . 2 1 . 1 4 5 Builder 8 | . 1 . 3 . . . 1 3 Tunneler 8 | . . 2 2 1 . 1 2 . Hauler 12 | . 2 . 3 . . . 5 2 Recycler 15 | . 3 . 1 . . . 5 6 Mechanic 1 | . . . . . . . 1 . Operator 3 | . 1 . 2 . . . . . Turret 1 | . . . . . 1 . . . Watcher 9 | . 3 . 2 . . . 2 2 Swarmer 28 | . 6 3 8 . . . 7 4 Grunt 64 | . 6 2 10 . . 3 23 20 Brawler 3 | . . . . . . . 2 1 Duelist 6 | . . . . . . . 4 2 Protector 3 | . . . . . . . 2 1 Sentry 20 | . . . 4 . . . 8 8 Demolisher 1 | . . 1 . . . . . . Hunter 5 | . . . . . . . 3 2 Programmer 2 | . . . . . . . . 2 Zionite 7 | . . . . . 7 . . . Assembled 7 | . . . . . 7 . . . Thug 1 | . . . . 1 . . . . Best Kill Streak 18 | . 3 5 18 1 4 4 12 12 Combat Bots Only 7 | . 3 5 5 . 3 3 7 6 Max Kills in Single Turn 5 | . 2 1 5 1 4 1 3 3 Gunslinging 1 | . . . 1 . . . . . Exploded 2 | . . . 2 . 2 1 2 2 Melee 1 | . . . . . . . . 1 Uniques/NPCs Destroyed 2 | . . . . . 2 . . . EX-HEX (-9/Exiles) 8R-AWN (-9/Exiles) EX-BIN (-9/Exiles) EX-DEC (-9/Exiles) Combat | -11 -10 -10 -9 -9 -9 -8 -8 -7 -------- Run | Scr Mat Min Mat Min Exi Min Mat Fac Damage Taken 10271 | . 726 185 629 93 1386 170 1662 5420 Core 1365 | . 173 16 89 . 97 35 245 710 Absorbed by Shields . | . . . . . . . . . Core Remaining (%) 55 | 100 . 24 . . . 44 55 . Volleys Fired 496 | . 79 16 68 4 66 7 131 125 Largest 2 | . 2 2 2 2 2 1 2 2 Hottest 250 | . 70 70 90 88 88 36 136 250 Shots Fired 777 | . 137 32 136 8 91 7 176 190 Gun 303 | . 119 . 70 . 28 . 40 46 Cannon 403 | . 18 32 66 8 60 . 89 130 Launcher 71 | . . . . . 3 7 47 14 Special . | . . . . . . . . . Kinetic 344 | . 137 32 66 8 76 . 19 6 Thermal 250 | . . . . . . . 110 140 Explosive 43 | . . . . . 3 . 26 14 Electromagnetic 140 | . . . 70 . 12 7 21 30 Robot Hit Streak 19 | . 17 5 19 3 8 3 18 19 Robot Miss Streak 17 | . 5 2 17 7 7 4 8 4 Penetration Max . | . . . . . . . . . Secondary Targets 6 | . 2 . 4 . . . . . Max Gunslinging Chain 1 | . 1 . 1 . . . . . Shots Hit Robots 556 | . 81 19 102 11 91 4 115 133 Core Hits 397 | . 33 10 61 8 50 6 119 110 Critical Hits 28 | . . . 3 . 11 . 9 5 Critical Kills 8 | . . . 2 . . . 3 3 Critical Parts Destroyed 9 | . . . . . 1 . 6 2 Melee Attacks 32 | . . . . 3 19 1 4 5 Impact 7 | . . . . . . . 2 5 Slashing 25 | . . . . 3 19 1 2 . Piercing . | . . . . . . . . . Sneak Attacks 6 | . . . . 3 . 1 2 . Combat Hostiles . | . . . . . . . . . Follow-up Attacks 2 | . . . . . 2 . . . Damage Inflicted 19123 | . 1048 324 1687 481 2020 436 6220 6907 Guns 3301 | . 838 . 899 . 316 . 562 686 Cannons 5874 | . 210 324 622 157 745 . 1250 2566 Explosions 8736 | . . . 166 . 434 352 4181 3603 Melee 1212 | . . . . 324 525 84 227 52 Ramming . | . . . . . . . . . Kinetic 3290 | . 1048 324 622 157 829 . 262 48 Thermal 5493 | . . . 166 . . . 1550 3777 Explosive 6049 | . . . . . 434 . 3699 1916 Electromagnetic 3079 | . . . 899 . 232 352 482 1114 Impact 52 | . . . . . . . . 52 Slashing 1160 | . . . . 324 525 84 227 . Piercing . | . . . . . . . . . Highest Corruption 8 | . . . . . 3 3 4 8 Average Corruption 3 | . . . . . 2 3 3 4 Corruption Purged . | . . . . . . . . . Effects 78 | . . . . . 19 5 36 18 Message Errors 19 | . . . . . 6 2 8 3 Matter Fused 17 | . . . . . 5 1 9 2 Heat Flow Errors 10 | . . . . . 1 . 8 1 Energy Discharges 6 | . . . . . 1 . 2 3 Parts Rejected 1 | . . . . . . . . 1 Data Loss (minor) 12 | . . . . . 5 1 4 2 Targeting Errors 9 | . . . . . 1 1 3 4 Weapon Failures 4 | . . . . . . . 2 2 Overload Shots 21 | . . . . . . . . 21 Effects 2 | . . . . . . . . 2 Heat Surge 1 | . . . . . . . . 1 Meltdown 1 | . . . . . . . . 1 Overflow Damage 842 | . . . 9 45 58 31 218 481 Projectiles 210 | . . . 9 . 21 . 16 164 Explosions 498 | . . . . . 37 31 113 317 Melee 134 | . . . . 45 . . 89 . Knockbacks 27 | . 4 3 9 2 9 . . . Impact . | . . . . . . . . . Kinetic 27 | . 4 3 9 2 9 . . . Secondary . | . . . . . . . . . Self-Inflicted Damage 501 | . . . 33 . . 15 68 385 Shots 15 | . . . 1 . . 1 5 8 Rammed . | . . . . . . . . . Targets Rammed . | . . . . . . . . . Kicked . | . . . . . . . . . Crushed . | . . . . . . . . . Highest Temperature 408 | . 18 81 249 91 324 170 408 382 Average Temperature 80 | . 6 22 56 33 87 89 95 126 Received Heat Transfer 3033 | . 351 36 201 54 . 81 585 1725 Effects 7 | . . . . . . . 5 2 Energy Bleed 1 | . . . . . . . 1 . Interference 4 | . . . . . . . 4 . Matter Decay 1 | . . . . . . . . 1 Short Circuit 1 | . . . . . . . . 1 Siege Activations . | . . . . . . . . . Robots Corrupted 4 | . . . . . 1 2 1 . Combat Hostiles 2 | . . . . . . 2 . . Parts Fried 15 | . . . 2 . . 4 3 6 Impact Corruptions . | . . . . . . . . . Robots Melted 4 | . . . . . . . . 4 Combat Hostiles 2 | . . . . . . . . 2 Parts Melted 13 | . . . . . . . 5 8 Heat Transferred 11303 | . . . 250 . . . 2886 8167 Parts Sabotaged . | . . . . . . . . . Parts Stolen . | . . . . . . . . . Parts Stripped . | . . . . . . . . . Power Chain Reactions 2 | . . . 2 . . . . . Missiles Intercepted . | . . . . . . . . . Latent Energy Used 400 | . . . . . . . . 400 LE Corruption 6 | . . . . . . . . 6 Alert | -11 -10 -10 -9 -9 -9 -8 -8 -7 ------- Run | Scr Mat Min Mat Min Exi Min Mat Fac Peak Influence 2150 | . 257 139 441 178 . 95 1314 2150 Initial 592 | . . 14 1 109 . . 37 592 Average 485 | . 98 33 270 154 . 31 771 1012 Maximum Alert Level 5 | . 1 . 2 . . . 4 5 Low Security (%) 41 | . 89 100 30 100 . 100 3 . Level 1 12 | . 10 . 58 . . . 6 . Level 2 15 | . . . 10 . . . 20 37 Level 3 22 | . . . . . . . 60 33 Level 4 3 | . . . . . . . 9 7 Level 5 2 | . . . . . . . . 10 High Security 2 | . . . . . . . . 10 Max Security . | . . . . . . . . . Squads Dispatched 25 | . 1 . 2 . . . 9 13 Investigation 4 | . . . . . . . 2 2 Extermination 2 | . . . . . . . . 2 Reinforcement 9 | . 1 . 2 . . . 2 4 Assault 9 | . . . . . . . 4 5 Garrison 1 | . . . . . . . 1 . Intercept . | . . . . . . . . . Construction Impeded 4 | . . . . . . . 1 3 Haulers Reinforced 1 | . . . . . . . . 1 Stealth | -11 -10 -10 -9 -9 -9 -8 -8 -7 --------- Run | Scr Mat Min Mat Min Exi Min Mat Fac Distress Signals 9 | . 1 . 4 . . . 2 2 Communications Jammed . | . . . . . . . . . Distress Signals . | . . . . . . . . . Times Spotted 254 | . 23 8 38 2 55 3 64 61 Peak Tracking Total 13 | . 4 3 8 2 5 3 7 13 Tactical Retreats 28 | . 1 1 2 . 17 1 4 2 Traps | -11 -10 -10 -9 -9 -9 -8 -8 -7 ------- Run | Scr Mat Min Mat Min Exi Min Mat Fac Traps Triggered 3 | . 2 . . . . . 1 . Indirectly . | . . . . . . . . . Trap Hack Attempts . | . . . . . . . . . Triggered . | . . . . . . . . . Disarmed . | . . . . . . . . . Reprogrammed . | . . . . . . . . . Reused 3 | . . . . . 3 . . . Traps Extracted . | . . . . . . . . . Installed 3 | . . . . . 3 . . . Triggered 1 | . . . . . . . . 1 Machines | -11 -10 -10 -9 -9 -9 -8 -8 -7 ---------- Run | Scr Mat Min Mat Min Exi Min Mat Fac Machines Disabled 41 | . 1 . 1 . 6 1 8 24 Max in Single Turn 6 | . 1 . 1 . 1 1 2 6 Garrison Access 1 | . . . . . . . 1 . Machines Sabotaged . | . . . . . . . . . Garrisons Compromised . | . . . . . . . . . Overloaded Fab Kills . | . . . . . . . . . Fab Network Shutdowns 1 | . . . . . . . . 1 Hacking | -11 -10 -10 -9 -9 -9 -8 -8 -7 --------- Run | Scr Mat Min Mat Min Exi Min Mat Fac Machines Accessed 25 | . 5 . 3 . 2 . 8 7 Terminals 17 | . 5 . 2 . . . 6 4 Fabricators 2 | . . . . . . . . 2 Repair Stations 1 | . . . . . . . 1 . Recycling Units . | . . . . . . . . . Scanalyzers 3 | . . . 1 . . . 1 1 Garrison Access . | . . . . . . . . . Total Hacks 77 | . 12 . 7 . 6 . 25 27 Successful 33 | . 2 . 4 . 6 . 13 8 Failed 43 | . 9 . 3 . . . 12 19 Catastrophic 5 | . . . 1 . . . 1 3 Database Lockouts 1 | . 1 . . . . . . . Manual 38 | . 10 . 2 . 1 . 15 10 Terminals 48 | . 12 . 4 . . . 18 14 Fabricators 6 | . . . . . . . . 6 Repair Stations 4 | . . . . . . . 4 . Recycling Units . | . . . . . . . . . Scanalyzers 13 | . . . 3 . . . 3 7 Garrison Access . | . . . . . . . . . Terminal Hacks 15 | . 2 . 2 . 6 . 4 1 Record 5 | . . . . . 5 . . . Part Schematic 1 | . 1 . . . . . . . Branch Access Points 1 | . . . 1 . . . . . Machine Index 1 | . . . . . . . . 1 Terminal Index 2 | . 1 . . . . . 1 . Alert Level 2 | . . . 1 . . . 1 . Recall Reinforcements 1 | . . . . . . . 1 . Hauler Manifests 1 | . . . . . . . 1 . EX-Prototype ID Bank 1 | . . . . . 1 . . . Fabricator Hacks 3 | . . . . . . . . 3 Build 3 | . . . . . . . . 3 Repair Station Hacks 4 | . . . . . . . 4 . Scan Component 2 | . . . . . . . 2 . Repair 2 | . . . . . . . 2 . Recycling Unit Hacks . | . . . . . . . . . Scanalyzer 6 | . . . 2 . . . 2 2 Insert Component 5 | . . . 1 . . . 2 2 Analyze 1 | . . . 1 . . . . . Garrison Access Hacks . | . . . . . . . . . Unauthorized Hacks 5 | . . . . . . . 3 2 Terminals 5 | . . . . . . . 3 2 Track 1 | . . . . . . . . 1 Botnet 4 | . . . . . . . 3 1 Fabricators . | . . . . . . . . . Repair Stations . | . . . . . . . . . Recycling Units . | . . . . . . . . . Scanalyzers . | . . . . . . . . . Garrison Access . | . . . . . . . . . Data Cores Recovered . | . . . . . . . . . Used . | . . . . . . . . . Hacking Detections 22 | . 5 . 3 . . . 7 7 Full Trace Events 2 | . . . . . . . 1 1 Feedback Events 1 | . . . . . . . 1 . Corruption 1 | . . . . . . . 1 . Feedback Blocked . | . . . . . . . . . Robot Schematics Acquired . | . . . . . . . . . Robots Built . | . . . . . . . . . Matter . | . . . . . . . . . Time . | . . . . . . . . . Total Robot Build Rating . | . . . . . . . . . Part Schematics Acquired 2 | . 1 . 1 . . . . . Parts Built 5 | . . . . . . . . 5 Matter 504 | . . . . . . . . 504 Time 168 | . . . . . . . . 168 Total Part Build Rating 20 | . . . . . . . . 20 Parts Repaired 2 | . . . . . . . 2 . Time 94 | . . . . . . . 94 . Parts Recycled . | . . . . . . . . . Recycled Matter . | . . . . . . . . . Retrieved Matter . | . . . . . . . . . Retrieved Components . | . . . . . . . . . Parts Scanalyzed 2 | . . . 1 . . . 1 . Part Schematics Acquired 1 | . . . 1 . . . . . Parts Damaged . | . . . . . . . . . Bothacking | -11 -10 -10 -9 -9 -9 -8 -8 -7 ------------ Run | Scr Mat Min Mat Min Exi Min Mat Fac Used RIF Installer . | . . . . . . . . . Robots Hacked . | . . . . . . . . . Non-combat . | . . . . . . . . . Combat . | . . . . . . . . . Robot Hacks Applied . | . . . . . . . . . Relay Couplers Released . | . . . . . . . . . Robots Rewired . | . . . . . . . . . Allies Hacked . | . . . . . . . . . Hacks Repelled . | . . . . . . . . . Allies | -11 -10 -10 -9 -9 -9 -8 -8 -7 -------- Run | Scr Mat Min Mat Min Exi Min Mat Fac Total Allies 4 | . . . . 4 . . . . Largest Group 4 | . . . . 4 3 . . . Highest-Rated Group 71 | . . . . 71 40 . . . Highest-Rated Ally 31 | . . . . 31 16 . . . Total Orders 7 | . . . . . 7 . . . STAY 4 | . . . . . 4 . . . FOLLOW 3 | . . . . . 3 . . . Ally Attacks 35 | . . . . 4 31 . . . Total Damage 187 | . . . . 49 138 . . . Kills 3 | . . . . 2 1 . . . Allies Corrupted . | . . . . . . . . . Allies Melted . | . . . . . . . . . Intel | -11 -10 -10 -9 -9 -9 -8 -8 -7 ------- Run | Scr Mat Min Mat Min Exi Min Mat Fac Robot Analysis Total . | . . . . . . . . . Derelict Logs Recovered 3 | . . 2 . 1 . . . . Drone Launches . | . . . . . . . . . Drone Recoveries . | . . . . . . . . . Exploration | -11 -10 -10 -9 -9 -9 -8 -8 -7 ------------- Run | Scr Mat Min Mat Min Exi Min Mat Fac Turns Passed 10118 | . 984 1036 1241 341 2610 392 1852 1662 Spaces Moved 4983 | 1 576 652 510 155 1296 250 865 678 Core . | . . . . . . . . . Treads 2182 | . . . 457 155 767 . 128 675 Legs 2800 | 1 576 652 53 . 529 250 737 2 Wheels . | . . . . . . . . . Hover . | . . . . . . . . . Flight 1 | . . . . . . . . 1 Fastest Speed 120 | 120 120 150 150 200 150 150 150 160 Average Speed 164 | 120 124 150 191 200 178 150 156 171 Slowest Speed 875 | 120 150 150 210 200 240 150 240 875 Overloaded Moves . | . . . . . . . . . Propulsion Burnouts . | . . . . . . . . . Robots Hopped . | . . . . . . . . . Cave-ins Triggered . | . . . . . . . . . Exploration Rate (%) 55 | 2 75 99 41 39 89 64 73 21 Regions Visited 8 Branch Regions 4 Pre-discovered Areas 2 | . . 1 . . 1 . . . Known Exits Taken 3 | . . 1 1 . . . 1 . Unknown Exits Taken 5 | 1 1 . . 1 1 1 . . Scrap Searched 3 | . . 2 . . . 1 . . Spaces Dug 3 | . . . . . . . 2 1 Terrain Destroyed 438 | . . . 9 . 18 . 196 215 Melee 3 | . . . . . . . 2 1 Projectile 15 | . . . . . 2 . 1 12 AOE 420 | . . . 9 . 16 . 193 202 Terrain Rammed . | . . . . . . . . . Walls Destroyed . | . . . . . . . . . Machines Disabled . | . . . . . . . . . Actions | -11 -10 -10 -9 -9 -9 -8 -8 -7 --------- Run | Scr Mat Min Mat Min Exi Min Mat Fac Total 6104 | . 709 678 645 174 1477 258 1180 983 Wait 210 | . 18 5 8 2 14 . 89 74 Move 4975 | . 575 651 509 154 1295 249 864 678 Hop . | . . . . . . . . . Pick Up 94 | . 9 2 26 4 22 . 18 13 Fast Attach 64 | . 10 . 5 . 11 . 18 20 Attach 35 | . 2 . 3 . 5 . 5 20 Detach 16 | . . . 1 . 2 . 4 9 Swap 67 | . 5 2 8 3 15 1 19 14 Drop 114 | . 11 2 17 4 27 . 28 25 Fire 496 | . 79 16 68 4 66 7 131 125 Melee 30 | . . . . 3 17 1 4 5 Ram . | . . . . . . . . . Kick . | . . . . . . . . . Crush . | . . . . . . . . . Escape Stasis . | . . . . . . . . . Rewire . | . . . . . . . . . Trap 3 | . . . . . 3 . . . Miscellaneous . | . . . . . . . . . Route ------- -11/Scrapyard -10/Materials (discovered 2 exits: *Mat / [*Min]) -10/Mines (discovered 2 exits: *Mat x2) -9/Materials (discovered 3 exits: *Mat / *Min / *Sto) -9/Mines (discovered 2 exits: *Mat / *Exi) -9/Exiles (discovered 2 exits: [*Min x2]) -8/Mines -8/Materials (discovered 3 exits: *Fac x3) -7/Factory (discovered 1 exit: [*Fac]) History --------- Turn | Location | Event 1 | -11/Scrapyard | Discovered new exit (range 0) 1 | -11/Scrapyard | Entered Materials 185 | -10/Materials | Discovered new exit (range 3) 262 | -10/Materials | Discovered new exit (range 12) 318 | -10/Materials | Build established: Mutant 552 | -10/Materials | Central database locked down 639 | -10/Materials | Core integrity fell below 50% 674 | -10/Materials | Lost 4 parts (1p1n2w) 985 | -10/Materials | Entered Mines 986 | -10/Mines | Assembled infested the area 991 | -10/Mines | Assisted by a Guerilla fighting off Assembled 1026 | -10/Mines | Identified exit to Materials 1239 | -10/Mines | Learned location of Storage (-9) 1716 | -10/Mines | Discovered exit to Materials (range 9) 2021 | -10/Mines | Entered Materials 2021 | -9/Materials | Evolved 2 slots: Utility x2 2421 | -9/Materials | Discovered new exit (range 10) 2579 | -9/Materials | Build established: Hauler-Mutant 2846 | -9/Materials | Identified exit to Mines 2846 | -9/Materials | Identified exit to Storage 2901 | -9/Materials | Discovered new exit (range 9) 3262 | -9/Materials | Entered Mines 3270 | -9/Mines | Assisted by bots powering up and referring to "LRC-V3" 3318 | -9/Mines | Learned location of 1 exit from Materials 3466 | -9/Mines | Received a Mining Laser from a helpful Derelict 3524 | -9/Mines | Discovered new exit (range 6) 3528 | -9/Mines | Found a hidden stash of uninstalled traps 3591 | -9/Mines | Deemed a non-threat by the Exiles lab entrance 3591 | -9/Mines | Discovered new exit (range 5) 3603 | -9/Mines | Entered Exiles 3603 | -9/Exiles | Accompanied by 3 allies 3651 | -9/Exiles | Met 8R-AWN 3685 | -9/Exiles | Met EX-HEX 3751 | -9/Exiles | Met EX-BIN 3775 | -9/Exiles | Aligned with FarCom system 3777 | -9/Exiles | Given EX-Vault access code 3827 | -9/Exiles | Opened EX-Vault 3875 | -9/Exiles | Warned to stay clear of 0b10 Research branches 4236 | -9/Exiles | Discovered new exit (range 15) 4337 | -9/Exiles | Attacked by the Exiles 4347 | -9/Exiles | Allies destroyed EX-HEX 4416 | -9/Exiles | Found Prototype Ballistic Gun 4617 | -9/Exiles | Lost 4 parts (1n3u) 4652 | -9/Exiles | Identified 8R-AWN's Boregun 4673 | -9/Exiles | Build established: Mutant 4990 | -9/Exiles | Destroyed 8R-AWN 5027 | -9/Exiles | Found Prototype Processor 5235 | -9/Exiles | Destroyed EX-BIN 5292 | -9/Exiles | Destroyed EX-DEC 5369 | -9/Exiles | Found Deploy-a-Sentry 5522 | -9/Exiles | Found Prototype Device 5522 | -9/Exiles | Identified AS-neutralizer No. 17b 5635 | -9/Exiles | Found Prototype Protection 5728 | -9/Exiles | Found Latent Energy Streamer 5732 | -9/Exiles | Found Firepult 5818 | -9/Exiles | Build established: Hauler-Mutant 6126 | -9/Exiles | Learned location of Zion (-7) 6201 | -9/Exiles | Discovered new exit (range 10) 6213 | -9/Exiles | Stole three prototypes: Latent Energy Streamer, Firepult, Deploy-a-Sentry 6213 | -9/Exiles | Entered Mines 6476 | -8/Mines | Core integrity fell below 50% 6596 | -8/Mines | Discovered new exit (range 6) 6605 | -8/Mines | Entered Materials 6605 | -8/Materials | Evolved 2 slots: Propulsion x1, Utility x1 6606 | -8/Materials | Identified exit to Factory 6647 | -8/Materials | Garrison activated, responded to threat 7060 | -8/Materials | Build established: Scavenger-Mutant 7070 | -8/Materials | Destroyed 7 combat bots 7405 | -8/Materials | First assault squad dispatched 7571 | -8/Materials | Repaired Imp. Grenade Launcher? 7623 | -8/Materials | Identified Exp. Targeting Computer 7634 | -8/Materials | Identified 8R-AWN's Armor/EX 7647 | -8/Materials | Repaired Rnf. Fission Core 7737 | -8/Materials | Discovered exit to Factory (range 15) 8072 | -8/Materials | Discovered exit to Factory (range 16) 8457 | -8/Materials | Entered Factory 8457 | -7/Factory | Evolved 2 slots: Utility x2 9297 | -7/Factory | Fabricated Lrn. Sensor Array (x1) 9491 | -7/Factory | Build established: Hauler-Mutant 9533 | -7/Factory | Fabricated Med. Treads (x2) 9587 | -7/Factory | Fabricated Med. Treads? 9624 | -7/Factory | Lost 5 parts (1n3u1w) 9647 | -7/Factory | Local fabrication network quarantined 9657 | -7/Factory | First assault squad dispatched 9847 | -7/Factory | Discovered new exit (range 15) 9940 | -7/Factory | High security lockdown imminent 10020 | -7/Factory | High security lockdown engaged 10086 | -7/Factory | Core integrity fell below 50% 10111 | -7/Factory | Core integrity fell below 20% 10119 | -7/Factory | Destroyed by G-47 Trooper with Particle Gun Last Messages --------------- 10102_ System corrupted: Energy discharge (-74). 10102_ G-47 Trooper heat damages core (-7). 10102_ Y-54 Guardian critical meltdown. 10103_ Lgt. Treads destroyed. 10103_ G-47 Trooper overheating. 10104_ Y-54 Guardian heat spikes uncontrollably. 10104_ G-47 Trooper heat short circuits Aluminum Leg. 10105_ Y-54 Guardian heat damages Imp. Heat Sink. 10105_ Rnf. Fission Core destroyed. 10106_ Y-54 Guardian heat damages Gatling Laser. 10111_ Adv. Myomer Leg destroyed. 10111_ L-41 Fighter destroyed. 10112_ The unstable cave ceiling collapses. 10113_ Y-54 Guardian heat damages core (-9). 10113_ Y-54 Guardian heat spikes uncontrollably. 10115_ Imp. Heat Sink destroyed. 10116_ Y-54 Guardian critical meltdown. 10117_ System corrupted: Enh. Nuclear Core rejected. 10117_ Y-54 Guardian heat short circuits Lgt. Treads. 10119_ Y-54 Guardian heat spikes uncontrollably. Map ----- +----------------------------------------------------+ | ?????????????#?# "" #????????????????????????? | | ????????????? !# "" #????????????????????????? | | ?????????????? # " #????????????????????????? | | ???????????????/ #????????????????????????? | | ???????????????# #????????????????????????? | | ???????????????# #????????????????????????? | | ???????????????# ###????????????????????? # | | ???????????????#[ ##?????????????????? | | ???????????????### "####???????????? | | ?????????????????# " "" #??????????# = | | ?????????????????# %% #??????????? # | | ?????????????????# " "" ##??????????# | | ????????###??????# "" #?????????## | | ????????# ????# % """ ##?????????# # | | ????????# """ ### m g ="""" ########????# | | ????????# "R /%/ g""""m"""" ## ###??? | | ????????+ """ ### g " """" ;;""";;;"#????# | | ????????? ""????#[=%= gg![% ; ###### | | ?????????????????# !* = ![ *=! + | | ?????????????????#!! # ##?### | | ?????????????????#!! #### | | ?????????????????#### ! ## # % | | ????????????????????# /%! # ###### % | | ????????????????????# +% %% | | ????????????????????# b%Y g ########## | | ???????????????????## % @ # # ![ | | ???????????????????# =< # | | ???????????????????## # | | ????????????????????# # | | ????????????????????# # | | ????????????????????# | | ????????????????????### # # | | ??????????????????????# # # !# | | ??????????????????????# # ] # = | | ??????????????????????+ ## # %! | | ??????????????????????# # # # ## * | | ??????????????????????# ### # ##### | | ??????????????????????# #?## ###???#######"### | | ??????????????????????# ?? ?????????# | | ??????????????????????# ??? ????????# # | | ??????????????????????# ??? ?????????# # | | ??????????????????????# ??? ??????#### # | | ??????????????????????? ???????????+ # | | ???????????????????????????????? ???????# # | | ???????????????????????????????? ####+# # | | ???????????????????????????????? # | | ??????????????????????????????? # | | ??????????????????????????????? # | | ??????????????????????????????? + | | ??????????????????????????????? " | +----------------------------------------------------+ Best States ------------- Heat Dissipation 62 Energy Generation 19 Energy Capacity 310 Matter Stores 300 Matter Capacity 300 Sight Range 16 Terrain Scan Density 10 Armor Coverage 375 Resistance: KI 20 Resistance: EM 15 Power Shielding 66 Utility Shielding 33 Evasion (%) 40 Recoil Reduction 3 Offensive Hacking 10 Item Schematics ----------------- Lrg. Storage Unit | -10/Materials | Hacked Hacking Suite | -9/Materials | Scanalyzed Robot Schematics ------------------ None Fabricated ------------ Lrn. Sensor Array | x1 | -7/Factory | Preloaded Med. Treads | x2 | -7/Factory | Preloaded Med. Treads | x2 | -7/Factory | Preloaded Alien Tech Used ----------------- None Achievements -------------- Overkill Challenges ------------ None Game ------ Seed UltimateAntimatterPerforator Manual? 0 Play Time 01:17:21 Cumulative 339.6 hours Start 2020.09.13 @ 19:06:46 End 2020.09.13 @ 20:24:25 Sessions 1 Manual Loads 0 Difficulty Rogue Special Mode None Game No. 369 Rogue 369 Adventurer 0 Explorer 0 Win Type - Total 30 Types 17/4/2/1/2/1/3/0/0 Lore% 93 Gallery% 89 Achievement% 79 Wizard Run 0 Options --------- ASCII 0 Keyboard 0 Movement Arrows Keybinds 0 Fullscreen 2 Font 18/SmallcapsGlow Map View 76x50 Tactical HUD 1 Map Filters NONE Filters NONE Steam 1 RUN: 553885f2-f965-4a40-a540-799656471f83